[Event "Titled Tuesday Blitz March 07 Early 2023"]
[White "Hayrapetyan, Hovik"]
[Black "Odegov, Artem"]
[WhiteFideId "13302639"]
[BlackFideId "34183644"]
[WhiteElo "2348"]
[BlackElo "2300"]
[Result "0-1"]
[Round "05"]
[TimeControl "180+2"]
[Date "2023.03.07"]
[WhiteClock "0:00:03"]
[BlackClock "0:00:06"]

1. d4 {[%clk 0:03:00]}  d5 {[%clk 0:02:58]} 2. c4 {[%clk 0:03:01]}  e6 {[%clk 0:02:58]} 3. Nc3 {[%clk 0:03:01]}  c5 {[%clk 0:02:58]} 4. cxd5 {[%clk 0:03:01]}  exd5 {[%clk 0:02:58]} 5. Nf3 {[%clk 0:02:50]}  Nc6 {[%clk 0:02:56]} 6. dxc5 {[%clk 0:02:33]}  d4 {[%clk 0:02:54]} 7. Na4 {[%clk 0:02:32]}  Bxc5 {[%clk 0:02:54]} 8. Nxc5 {[%clk 0:02:32]}  Qa5+ {[%clk 0:02:54]} 9. Bd2 {[%clk 0:02:33]}  Qxc5 {[%clk 0:02:54]} 10. e3 {[%clk 0:02:33]}  dxe3 {[%clk 0:02:12]} 11. Bxe3 {[%clk 0:02:34]}  Qb4+ {[%clk 0:02:12]} 12. Qd2 {[%clk 0:02:32]}  Qxd2+ {[%clk 0:02:04]} 13. Bxd2 {[%clk 0:02:32]}  Nf6 {[%clk 0:02:04]} 14. Bc4 {[%clk 0:02:24]}  O-O {[%clk 0:02:03]} 15. O-O {[%clk 0:02:24]}  Bg4 {[%clk 0:02:04]} 16. Be3 {[%clk 0:02:12]}  Rfe8 {[%clk 0:01:52]} 17. Rac1 {[%clk 0:02:05]}  Rad8 {[%clk 0:01:50]} 18. a3 {[%clk 0:01:56]}  Bxf3 {[%clk 0:01:35]} 19. gxf3 {[%clk 0:01:57]}  Ne5 {[%clk 0:01:35]} 20. Kg2 {[%clk 0:01:33]}  a6 {[%clk 0:01:12]} 21. Ba2 {[%clk 0:01:09]}  Rd7 {[%clk 0:01:00]} 22. Rfd1 {[%clk 0:01:06]}  Nd3 {[%clk 0:00:58]} 23. Rb1 {[%clk 0:00:52]}  Red8 {[%clk 0:00:55]} 24. Kf1 {[%clk 0:00:46]}  Nh5 {[%clk 0:00:33]} 25. Rd2 {[%clk 0:00:45]}  Ndf4 {[%clk 0:00:18]} 26. Rxd7 {[%clk 0:00:44]}  Rxd7 {[%clk 0:00:19]} 27. Rc1 {[%clk 0:00:43]}  h6 {[%clk 0:00:18]} 28. Bb1 {[%clk 0:00:38]}  g6 {[%clk 0:00:17]} 29. Bc2 {[%clk 0:00:25]}  Kg7 {[%clk 0:00:15]} 30. Rd1 {[%clk 0:00:20]}  Rxd1+ {[%clk 0:00:14]} 31. Bxd1 {[%clk 0:00:21]}  Ne6 {[%clk 0:00:14]} 32. Bc2 {[%clk 0:00:19]}  Nhf4 {[%clk 0:00:13]} 33. Be4 {[%clk 0:00:18]}  b5 {[%clk 0:00:11]} 34. b4 {[%clk 0:00:16]}  g5 {[%clk 0:00:05]} 35. Bb7 {[%clk 0:00:15]}  Nc7 {[%clk 0:00:06]} 36. Bd4+ {[%clk 0:00:13]}  Kf8 {[%clk 0:00:06]} 37. Be5 {[%clk 0:00:12]}  Nfe6 {[%clk 0:00:05]} 38. Bd6+ {[%clk 0:00:11]}  Ke8 {[%clk 0:00:05]} 39. Bc6+ {[%clk 0:00:11]}  Kd8 {[%clk 0:00:05]} 40. Ke2 {[%clk 0:00:12]}  Nd4+ {[%clk 0:00:04]} 41. Kd3 {[%clk 0:00:11]}  Nxc6 {[%clk 0:00:05]} 42. Ke4 {[%clk 0:00:08]}  Kd7 {[%clk 0:00:05]} 43. Bf8 {[%clk 0:00:08]}  Ke6 {[%clk 0:00:04]} 44. Bxh6 {[%clk 0:00:08]}  f5+ {[%clk 0:00:04]} 45. Kd3 {[%clk 0:00:06]}  Ne5+ {[%clk 0:00:05]} 46. Ke2 {[%clk 0:00:06]}  Nf7 {[%clk 0:00:04]} 47. Bg7 {[%clk 0:00:06]}  Nd5 {[%clk 0:00:05]} 48. Bb2 {[%clk 0:00:03]}  Nf4+ {[%clk 0:00:05]} 49. Ke3 {[%clk 0:00:03]}  Nd6 {[%clk 0:00:06]} 0-1


[Site "https://www.chess.com"]

[Event "Titled Tuesday Blitz March 07 Early 2023"]
[White "Santos Ruiz, Miguel"]
[Black "Yelisieiev, Yevhenii"]
[WhiteFideId "22291482"]
[BlackFideId "14139642"]
[WhiteElo "2504"]
[BlackElo "2447"]
[Result "1-0"]
[Round "05"]
[TimeControl "180+2"]
[Date "2023.03.07"]
[WhiteClock "0:00:18"]
[BlackClock "0:00:08"]

1. e4 {[%clk 0:03:00]}  d6 {[%clk 0:03:00]} 2. d4 {[%clk 0:03:00]}  Nf6 {[%clk 0:03:01]} 3. Nc3 {[%clk 0:02:59]}  e5 {[%clk 0:03:02]} 4. Nge2 {[%clk 0:02:59]}  c6 {[%clk 0:03:02]} 5. a4 {[%clk 0:02:52]}  a5 {[%clk 0:02:58]} 6. h3 {[%clk 0:02:51]}  Be7 {[%clk 0:02:57]} 7. g4 {[%clk 0:02:51]}  O-O {[%clk 0:02:58]} 8. Be3 {[%clk 0:02:51]}  Nbd7 {[%clk 0:02:55]} 9. Bg2 {[%clk 0:02:41]}  exd4 {[%clk 0:02:54]} 10. Qxd4 {[%clk 0:02:40]}  Nc5 {[%clk 0:02:49]} 11. g5 {[%clk 0:02:40]}  Nfd7 {[%clk 0:02:47]} 12. h4 {[%clk 0:02:38]}  Qb6 {[%clk 0:02:27]} 13. b3 {[%clk 0:02:32]}  Qb4 {[%clk 0:02:27]} 14. f4 {[%clk 0:02:16]}  Re8 {[%clk 0:02:23]} 15. O-O {[%clk 0:02:11]}  Bf8 {[%clk 0:02:04]} 16. Rad1 {[%clk 0:02:07]}  Nb8 {[%clk 0:01:46]} 17. Ng3 {[%clk 0:01:24]}  Bg4 {[%clk 0:01:22]} 18. Rd2 {[%clk 0:01:16]}  Nba6 {[%clk 0:01:16]} 19. Qxb4 {[%clk 0:01:07]}  Nxb4 {[%clk 0:01:04]} 20. f5 {[%clk 0:01:05]}  g6 {[%clk 0:00:47]} 21. f6 {[%clk 0:00:31]}  d5 {[%clk 0:00:45]} 22. Bf2 {[%clk 0:00:25]}  dxe4 {[%clk 0:00:41]} 23. Ngxe4 {[%clk 0:00:23]}  Nxe4 {[%clk 0:00:40]} 24. Nxe4 {[%clk 0:00:23]}  Rad8 {[%clk 0:00:36]} 25. Rxd8 {[%clk 0:00:22]}  Rxd8 {[%clk 0:00:36]} 26. Bb6 {[%clk 0:00:23]}  Rd5 {[%clk 0:00:22]} 27. Rf2 {[%clk 0:00:23]}  h6 {[%clk 0:00:16]} 28. Kh2 {[%clk 0:00:21]}  hxg5 {[%clk 0:00:16]} 29. hxg5 {[%clk 0:00:22]}  Bd1 {[%clk 0:00:14]} 30. Nc3 {[%clk 0:00:21]}  Rd7 {[%clk 0:00:11]} 31. Nxd1 {[%clk 0:00:21]}  Rxd1 {[%clk 0:00:12]} 32. Bxa5 {[%clk 0:00:21]}  Rc1 {[%clk 0:00:11]} 33. c4 {[%clk 0:00:18]}  Bd6+ {[%clk 0:00:11]} 34. Kh3 {[%clk 0:00:18]}  Rc3+ {[%clk 0:00:11]} 35. Rf3 {[%clk 0:00:18]}  Rxf3+ {[%clk 0:00:10]} 36. Bxf3 {[%clk 0:00:19]}  Nd3 {[%clk 0:00:10]} 37. Bb6 {[%clk 0:00:18]}  Bf4 {[%clk 0:00:09]} 38. Kg4 {[%clk 0:00:18]}  Bd2 {[%clk 0:00:09]} 39. Be2 {[%clk 0:00:17]}  Ne5+ {[%clk 0:00:09]} 40. Kh4 {[%clk 0:00:17]}  Nd7 {[%clk 0:00:09]} 41. Bd4 {[%clk 0:00:17]}  Kf8 {[%clk 0:00:08]} 42. Kg4 {[%clk 0:00:18]}  Ke8 {[%clk 0:00:09]} 43. c5 {[%clk 0:00:17]}  Kd8 {[%clk 0:00:09]} 44. Bc4 {[%clk 0:00:16]}  Ke8 {[%clk 0:00:09]} 45. Bf2 {[%clk 0:00:10]}  Bb4 {[%clk 0:00:09]} 46. Kf3 {[%clk 0:00:10]}  Bxc5 {[%clk 0:00:10]} 47. Bg3 {[%clk 0:00:11]}  Ba7 {[%clk 0:00:08]} 48. Bf4 {[%clk 0:00:11]}  Bb8 {[%clk 0:00:09]} 49. Bxb8 {[%clk 0:00:10]}  Nxb8 {[%clk 0:00:10]} 50. Kf4 {[%clk 0:00:11]}  Nd7 {[%clk 0:00:10]} 51. b4 {[%clk 0:00:11]}  Nb6 {[%clk 0:00:10]} 52. Bb3 {[%clk 0:00:11]}  Nc8 {[%clk 0:00:11]} 53. Ke5 {[%clk 0:00:11]}  Nb6 {[%clk 0:00:11]} 54. a5 {[%clk 0:00:11]}  Nc8 {[%clk 0:00:11]} 55. Bc4 {[%clk 0:00:11]}  Kf8 {[%clk 0:00:11]} 56. Be2 {[%clk 0:00:10]}  Ke8 {[%clk 0:00:11]} 57. Bc4 {[%clk 0:00:10]}  Kf8 {[%clk 0:00:12]} 58. Kd4 {[%clk 0:00:10]}  Ke8 {[%clk 0:00:12]} 59. Kc5 {[%clk 0:00:11]}  Kf8 {[%clk 0:00:11]} 60. a6 {[%clk 0:00:10]}  bxa6 {[%clk 0:00:04]} 61. Bxa6 {[%clk 0:00:11]}  Na7 {[%clk 0:00:04]} 62. Kb6 {[%clk 0:00:11]}  Nb5 {[%clk 0:00:04]} 63. Bxb5 {[%clk 0:00:11]}  cxb5 {[%clk 0:00:04]} 64. Kxb5 {[%clk 0:00:12]}  Ke8 {[%clk 0:00:05]} 65. Kc6 {[%clk 0:00:13]}  Kd8 {[%clk 0:00:06]} 66. Kd6 {[%clk 0:00:14]}  Ke8 {[%clk 0:00:05]} 67. Kc7 {[%clk 0:00:14]}  Kf8 {[%clk 0:00:06]} 68. b5 {[%clk 0:00:15]}  Kg8 {[%clk 0:00:06]} 69. b6 {[%clk 0:00:16]}  Kh7 {[%clk 0:00:07]} 70. b7 {[%clk 0:00:17]}  Kh8 {[%clk 0:00:06]} 71. b8=Q+ {[%clk 0:00:16]}  Kh7 {[%clk 0:00:07]} 72. Qb7 {[%clk 0:00:17]}  Kg8 {[%clk 0:00:07]} 73. Kd7 {[%clk 0:00:17]}  Kf8 {[%clk 0:00:08]} 74. Qh1 {[%clk 0:00:16]}  Kg8 {[%clk 0:00:08]} 75. Qh2 {[%clk 0:00:17]}  Kf8 {[%clk 0:00:08]} 76. Qh8# {[%clk 0:00:18]} 1-0


[Site "https://www.chess.com"]

[Event "Titled Tuesday Blitz March 07 Early 2023"]
[White "Krzyzanowski, Marcin"]
[Black "Fiorito, Joaquin"]
[WhiteFideId "1132199"]
[BlackFideId "180173"]
[WhiteElo "2471"]
[BlackElo "2157"]
[Result "1-0"]
[Round "05"]
[TimeControl "180+2"]
[Date "2023.03.07"]
[WhiteClock "0:00:08"]
[BlackClock "0:00:04"]

1. e4 {[%clk 0:03:00]}  c6 {[%clk 0:02:59]} 2. Nf3 {[%clk 0:02:59]}  d5 {[%clk 0:03:00]} 3. d3 {[%clk 0:02:59]}  g6 {[%clk 0:03:00]} 4. Nc3 {[%clk 0:02:57]}  Bg7 {[%clk 0:03:00]} 5. Qe2 {[%clk 0:02:49]}  e5 {[%clk 0:02:54]} 6. g3 {[%clk 0:02:46]}  Ne7 {[%clk 0:02:53]} 7. Bg2 {[%clk 0:02:45]}  O-O {[%clk 0:02:53]} 8. O-O {[%clk 0:02:45]}  Nd7 {[%clk 0:02:53]} 9. h4 {[%clk 0:02:40]}  d4 {[%clk 0:02:47]} 10. Nb1 {[%clk 0:02:39]}  a5 {[%clk 0:02:47]} 11. a4 {[%clk 0:02:38]}  Nc5 {[%clk 0:02:46]} 12. Nh2 {[%clk 0:02:34]}  b5 {[%clk 0:02:45]} 13. axb5 {[%clk 0:02:33]}  cxb5 {[%clk 0:02:45]} 14. h5 {[%clk 0:02:31]}  Be6 {[%clk 0:02:46]} 15. h6 {[%clk 0:02:25]}  Bh8 {[%clk 0:02:44]} 16. f4 {[%clk 0:02:24]}  f6 {[%clk 0:02:14]} 17. Nf3 {[%clk 0:02:08]}  Bg4 {[%clk 0:02:11]} 18. Qe1 {[%clk 0:02:05]}  Qb6 {[%clk 0:01:41]} 19. Nbd2 {[%clk 0:01:54]}  Rac8 {[%clk 0:01:38]} 20. Nh2 {[%clk 0:01:42]}  Be6 {[%clk 0:01:33]} 21. Ndf3 {[%clk 0:01:42]}  Na4 {[%clk 0:01:31]} 22. Rf2 {[%clk 0:01:34]}  Bd7 {[%clk 0:01:15]} 23. Qf1 {[%clk 0:01:21]}  Rc5 {[%clk 0:00:59]} 24. fxe5 {[%clk 0:01:06]}  fxe5 {[%clk 0:00:58]} 25. Ng5 {[%clk 0:01:04]}  Rxf2 {[%clk 0:00:47]} 26. Qxf2 {[%clk 0:01:05]}  Qf6 {[%clk 0:00:45]} 27. Qxf6 {[%clk 0:00:56]}  Bxf6 {[%clk 0:00:46]} 28. b3 {[%clk 0:00:57]}  Nb6 {[%clk 0:00:40]} 29. Ra2 {[%clk 0:00:50]}  Nc6 {[%clk 0:00:33]} 30. Bd2 {[%clk 0:00:45]}  b4 {[%clk 0:00:24]} 31. Nhf3 {[%clk 0:00:42]}  Nd8 {[%clk 0:00:19]} 32. Bh3 {[%clk 0:00:39]}  Bxh3 {[%clk 0:00:18]} 33. Nxh3 {[%clk 0:00:40]}  Nf7 {[%clk 0:00:19]} 34. Nf2 {[%clk 0:00:40]}  Nd6 {[%clk 0:00:19]} 35. Ng4 {[%clk 0:00:40]}  Kf7 {[%clk 0:00:19]} 36. Nxf6 {[%clk 0:00:39]}  Kxf6 {[%clk 0:00:19]} 37. Ng5 {[%clk 0:00:39]}  Rc7 {[%clk 0:00:14]} 38. Kg2 {[%clk 0:00:29]}  Nf7 {[%clk 0:00:08]} 39. Nxh7+ {[%clk 0:00:26]}  Ke7 {[%clk 0:00:08]} 40. Ng5 {[%clk 0:00:24]}  Nxh6 {[%clk 0:00:08]} 41. Nf3 {[%clk 0:00:19]}  Nf7 {[%clk 0:00:09]} 42. Rxa5 {[%clk 0:00:17]}  Rxc2 {[%clk 0:00:09]} 43. Kh3 {[%clk 0:00:18]}  Nd7 {[%clk 0:00:07]} 44. Bxb4+ {[%clk 0:00:18]}  Kd8 {[%clk 0:00:04]} 45. Ra8+ {[%clk 0:00:17]}  Kc7 {[%clk 0:00:04]} 46. Ra7+ {[%clk 0:00:18]}  Kc8 {[%clk 0:00:05]} 47. Ra6 {[%clk 0:00:14]}  g5 {[%clk 0:00:05]} 48. Kg4 {[%clk 0:00:13]}  Rb2 {[%clk 0:00:04]} 49. Ra3 {[%clk 0:00:11]}  Nd8 {[%clk 0:00:03]} 50. Nxg5 {[%clk 0:00:09]}  Nc6 {[%clk 0:00:04]} 51. Bd6 {[%clk 0:00:09]}  Rd2 {[%clk 0:00:04]} 52. b4 {[%clk 0:00:09]}  Rxd3 {[%clk 0:00:04]} 53. Rxd3 {[%clk 0:00:08]} 1-0


[Site "https://www.chess.com"]

[Event "Titled Tuesday Blitz March 07 Early 2023"]
[White "Moksh Amit Doshi"]
[Black "Fier, Alexandr"]
[WhiteFideId "25064967"]
[BlackFideId "2107139"]
[WhiteElo "2297"]
[BlackElo "2610"]
[Result "0-1"]
[Round "05"]
[TimeControl "180+2"]
[Date "2023.03.07"]
[WhiteClock "0:00:20"]
[BlackClock "0:01:19"]

1. d4 {[%clk 0:02:56]}  Nf6 {[%clk 0:02:59]} 2. c4 {[%clk 0:02:56]}  c5 {[%clk 0:02:59]} 3. d5 {[%clk 0:02:55]}  e6 {[%clk 0:02:59]} 4. Nc3 {[%clk 0:02:53]}  exd5 {[%clk 0:03:00]} 5. cxd5 {[%clk 0:02:54]}  d6 {[%clk 0:03:01]} 6. e4 {[%clk 0:02:53]}  g6 {[%clk 0:03:00]} 7. h3 {[%clk 0:02:53]}  Bg7 {[%clk 0:02:57]} 8. Nf3 {[%clk 0:02:53]}  Nbd7 {[%clk 0:02:57]} 9. Bd3 {[%clk 0:02:52]}  Nh5 {[%clk 0:02:55]} 10. O-O {[%clk 0:02:44]}  Ne5 {[%clk 0:02:55]} 11. Nxe5 {[%clk 0:02:40]}  Bxe5 {[%clk 0:02:56]} 12. Bh6 {[%clk 0:02:17]}  Qh4 {[%clk 0:02:41]} 13. Bb5+ {[%clk 0:01:44]}  Kd8 {[%clk 0:02:26]} 14. Ne2 {[%clk 0:01:15]}  Qxe4 {[%clk 0:02:10]} 15. f4 {[%clk 0:01:00]}  Bxb2 {[%clk 0:02:10]} 16. Rb1 {[%clk 0:00:59]}  Bg7 {[%clk 0:02:10]} 17. Bg5+ {[%clk 0:00:55]}  Kc7 {[%clk 0:02:05]} 18. Re1 {[%clk 0:00:54]}  a6 {[%clk 0:01:54]} 19. Bd3 {[%clk 0:00:49]}  Qe3+ {[%clk 0:01:54]} 20. Kh1 {[%clk 0:00:39]}  Re8 {[%clk 0:01:46]} 21. Qb3 {[%clk 0:00:37]}  b5 {[%clk 0:01:39]} 22. a4 {[%clk 0:00:35]}  Bxh3 {[%clk 0:01:38]} 23. axb5 {[%clk 0:00:31]}  Qf2 {[%clk 0:01:22]} 24. gxh3 {[%clk 0:00:22]}  Re3 {[%clk 0:01:21]} 25. Ng1 {[%clk 0:00:20]}  Ng3# {[%clk 0:01:19]} 0-1


[Site "https://www.chess.com"]

[Event "Titled Tuesday Blitz March 07 Early 2023"]
[White "Borrmann, Laurenz"]
[Black "Atakhan, Abtin"]
[WhiteFideId "312187930"]
[BlackFideId "22502203"]
[WhiteElo "2312"]
[BlackElo "2008"]
[Result "0-1"]
[Round "05"]
[TimeControl "180+2"]
[Date "2023.03.07"]
[WhiteClock "0:00:01"]
[BlackClock "0:00:04"]

1. d4 {[%clk 0:02:46]}  Nf6 {[%clk 0:03:00]} 2. c4 {[%clk 0:02:46]}  e6 {[%clk 0:03:00]} 3. Nf3 {[%clk 0:02:46]}  d5 {[%clk 0:03:00]} 4. g3 {[%clk 0:02:45]}  Bb4+ {[%clk 0:03:01]} 5. Nc3 {[%clk 0:02:37]}  dxc4 {[%clk 0:02:54]} 6. Bg2 {[%clk 0:02:34]}  O-O {[%clk 0:02:35]} 7. a3 {[%clk 0:02:34]}  Ba5 {[%clk 0:02:16]} 8. O-O {[%clk 0:02:27]}  c6 {[%clk 0:02:04]} 9. Ne5 {[%clk 0:02:16]}  Nd5 {[%clk 0:01:49]} 10. Qc2 {[%clk 0:02:09]}  b5 {[%clk 0:01:42]} 11. Ne4 {[%clk 0:01:59]}  Bb6 {[%clk 0:01:30]} 12. Rd1 {[%clk 0:01:41]}  Qe7 {[%clk 0:01:26]} 13. h4 {[%clk 0:01:32]}  f6 {[%clk 0:01:26]} 14. Nf3 {[%clk 0:01:29]}  Nd7 {[%clk 0:01:19]} 15. b3 {[%clk 0:01:20]}  cxb3 {[%clk 0:01:12]} 16. Qxb3 {[%clk 0:01:21]}  Bb7 {[%clk 0:01:11]} 17. a4 {[%clk 0:01:18]}  a6 {[%clk 0:01:09]} 18. Ba3 {[%clk 0:01:16]}  b4 {[%clk 0:01:09]} 19. Bb2 {[%clk 0:01:16]}  a5 {[%clk 0:01:08]} 20. Ned2 {[%clk 0:01:09]}  c5 {[%clk 0:00:53]} 21. e4 {[%clk 0:01:02]}  Nc7 {[%clk 0:00:34]} 22. Rac1 {[%clk 0:01:00]}  Rac8 {[%clk 0:00:26]} 23. Nc4 {[%clk 0:00:58]}  Bxe4 {[%clk 0:00:20]} 24. Nxb6 {[%clk 0:00:55]}  Nxb6 {[%clk 0:00:21]} 25. dxc5 {[%clk 0:00:55]}  Bd5 {[%clk 0:00:20]} 26. Qc2 {[%clk 0:00:50]}  b3 {[%clk 0:00:21]} 27. Qe2 {[%clk 0:00:45]}  Nxa4 {[%clk 0:00:22]} 28. Ba3 {[%clk 0:00:38]}  Rfd8 {[%clk 0:00:20]} 29. h5 {[%clk 0:00:35]}  Rb8 {[%clk 0:00:20]} 30. Bb2 {[%clk 0:00:23]}  Nxb2 {[%clk 0:00:19]} 31. Qxb2 {[%clk 0:00:24]}  Rb4 {[%clk 0:00:19]} 32. h6 {[%clk 0:00:24]}  gxh6 {[%clk 0:00:18]} 33. Nd4 {[%clk 0:00:22]}  Bxg2 {[%clk 0:00:16]} 34. Kxg2 {[%clk 0:00:23]}  Qe8 {[%clk 0:00:08]} 35. Nf3 {[%clk 0:00:16]}  Rxd1 {[%clk 0:00:07]} 36. Rxd1 {[%clk 0:00:17]}  Nd5 {[%clk 0:00:08]} 37. Re1 {[%clk 0:00:13]}  a4 {[%clk 0:00:08]} 38. Qd2 {[%clk 0:00:12]}  b2 {[%clk 0:00:05]} 39. Rb1 {[%clk 0:00:07]}  a3 {[%clk 0:00:05]} 40. Nd4 {[%clk 0:00:04]}  a2 {[%clk 0:00:04]} 41. Rxb2 {[%clk 0:00:05]}  a1=Q {[%clk 0:00:04]} 42. Rxb4 {[%clk 0:00:05]}  Nxb4 {[%clk 0:00:05]} 43. Qxb4 {[%clk 0:00:06]}  Qea8+ {[%clk 0:00:04]} 44. Nf3 {[%clk 0:00:06]}  Qe5 {[%clk 0:00:04]} 45. Qg4+ {[%clk 0:00:05]}  Qg5 {[%clk 0:00:04]} 46. Qd4 {[%clk 0:00:04]}  Qgd5 {[%clk 0:00:04]} 47. Qg4+ {[%clk 0:00:03]}  Kf7 {[%clk 0:00:03]} 48. Qf4 {[%clk 0:00:02]}  Qac6 {[%clk 0:00:03]} 49. g4 {[%clk 0:00:02]}  e5 {[%clk 0:00:04]} 50. Qf5 {[%clk 0:00:01]}  Qe4 {[%clk 0:00:04]} 0-1


[Site "https://www.chess.com"]

[Event "Titled Tuesday Blitz March 07 Early 2023"]
[White "Pulpan, Jakub"]
[Black "Derjabin, Ilja"]
[WhiteFideId "302759"]
[BlackFideId "14104768"]
[WhiteElo "2484"]
[BlackElo "2309"]
[Result "0-1"]
[Round "05"]
[TimeControl "180+2"]
[Date "2023.03.07"]
[WhiteClock "0:00:08"]
[BlackClock "0:00:24"]

1. Nf3 {[%clk 0:02:57]}  c5 {[%clk 0:02:59]} 2. e3 {[%clk 0:02:56]}  Nc6 {[%clk 0:02:59]} 3. c4 {[%clk 0:02:52]}  g6 {[%clk 0:02:59]} 4. Nc3 {[%clk 0:02:51]}  Bg7 {[%clk 0:03:00]} 5. d4 {[%clk 0:02:45]}  Nf6 {[%clk 0:02:57]} 6. Be2 {[%clk 0:02:39]}  O-O {[%clk 0:02:55]} 7. O-O {[%clk 0:02:39]}  cxd4 {[%clk 0:02:54]} 8. Nxd4 {[%clk 0:02:39]}  Ne5 {[%clk 0:02:36]} 9. Nf3 {[%clk 0:02:31]}  Nxf3+ {[%clk 0:02:26]} 10. Bxf3 {[%clk 0:02:31]}  d6 {[%clk 0:02:27]} 11. b3 {[%clk 0:02:15]}  Ne4 {[%clk 0:02:14]} 12. Bxe4 {[%clk 0:02:14]}  Bxc3 {[%clk 0:02:13]} 13. Rb1 {[%clk 0:02:15]}  Qc7 {[%clk 0:01:57]} 14. Bb2 {[%clk 0:02:11]}  Bxb2 {[%clk 0:01:56]} 15. Rxb2 {[%clk 0:02:12]}  Be6 {[%clk 0:01:56]} 16. Qf3 {[%clk 0:01:59]}  Rab8 {[%clk 0:01:53]} 17. a4 {[%clk 0:01:52]}  a6 {[%clk 0:01:48]} 18. Ra1 {[%clk 0:01:38]}  b5 {[%clk 0:01:37]} 19. cxb5 {[%clk 0:01:38]}  axb5 {[%clk 0:01:37]} 20. a5 {[%clk 0:01:39]}  d5 {[%clk 0:01:27]} 21. Bxd5 {[%clk 0:01:35]}  Qe5 {[%clk 0:01:26]} 22. Rbb1 {[%clk 0:01:27]}  Bxd5 {[%clk 0:01:22]} 23. Qg4 {[%clk 0:01:28]}  Bxb3 {[%clk 0:01:09]} 24. a6 {[%clk 0:01:25]}  Ba4 {[%clk 0:01:07]} 25. Qb4 {[%clk 0:01:21]}  Qd6 {[%clk 0:01:01]} 26. Qa5 {[%clk 0:01:13]}  Ra8 {[%clk 0:00:57]} 27. a7 {[%clk 0:01:12]}  Qd7 {[%clk 0:00:54]} 28. Qb4 {[%clk 0:01:10]}  Rxa7 {[%clk 0:00:53]} 29. h4 {[%clk 0:01:11]}  h5 {[%clk 0:00:52]} 30. Qc5 {[%clk 0:01:09]}  Rc7 {[%clk 0:00:51]} 31. Qe5 {[%clk 0:01:10]}  Rc4 {[%clk 0:00:48]} 32. g3 {[%clk 0:01:09]}  Rfc8 {[%clk 0:00:48]} 33. Qg5 {[%clk 0:00:57]}  Qd6 {[%clk 0:00:45]} 34. Re1 {[%clk 0:00:51]}  Rc2 {[%clk 0:00:44]} 35. Rf1 {[%clk 0:00:50]}  Qf6 {[%clk 0:00:43]} 36. Qd5 {[%clk 0:00:48]}  R2c5 {[%clk 0:00:34]} 37. Qb7 {[%clk 0:00:45]}  Bb3 {[%clk 0:00:31]} 38. Qa7 {[%clk 0:00:42]}  Bd5 {[%clk 0:00:29]} 39. f3 {[%clk 0:00:30]}  Qe6 {[%clk 0:00:28]} 40. e4 {[%clk 0:00:29]}  Qh3 {[%clk 0:00:24]} 41. exd5 {[%clk 0:00:11]}  Qxg3+ {[%clk 0:00:24]} 42. Kh1 {[%clk 0:00:12]}  Rc2 {[%clk 0:00:24]} 43. Qg1 {[%clk 0:00:08]}  Qh3+ {[%clk 0:00:24]} 0-1


[Site "https://www.chess.com"]

[Event "Titled Tuesday Blitz March 07 Early 2023"]
[White "Manukyan, Sargis V."]
[Black "Lortkipanidze, Nodar"]
[WhiteFideId "13303465"]
[BlackFideId "13604058"]
[WhiteElo "2236"]
[BlackElo "2336"]
[Result "0-1"]
[Round "05"]
[TimeControl "180+2"]
[Date "2023.03.07"]
[WhiteClock "0:01:18"]
[BlackClock "0:01:29"]

1. Nf3 {[%clk 0:02:43]}  d5 {[%clk 0:02:57]} 2. g3 {[%clk 0:02:44]}  Nc6 {[%clk 0:02:56]} 3. d4 {[%clk 0:02:44]}  Bf5 {[%clk 0:02:56]} 4. Bg2 {[%clk 0:02:45]}  Nb4 {[%clk 0:02:54]} 5. Na3 {[%clk 0:02:45]}  e6 {[%clk 0:02:54]} 6. O-O {[%clk 0:02:45]}  h6 {[%clk 0:02:54]} 7. Ne5 {[%clk 0:02:45]}  Nf6 {[%clk 0:02:53]} 8. c3 {[%clk 0:02:45]}  Na6 {[%clk 0:02:52]} 9. Nc2 {[%clk 0:02:39]}  Bd6 {[%clk 0:02:51]} 10. Ne3 {[%clk 0:02:38]}  Be4 {[%clk 0:02:51]} 11. f3 {[%clk 0:02:38]}  Bh7 {[%clk 0:02:51]} 12. N5g4 {[%clk 0:02:37]}  Nd7 {[%clk 0:02:48]} 13. f4 {[%clk 0:02:34]}  O-O {[%clk 0:02:37]} 14. Ne5 {[%clk 0:02:28]}  Nf6 {[%clk 0:02:24]} 15. N3g4 {[%clk 0:02:26]}  Ne4 {[%clk 0:02:22]} 16. Nf2 {[%clk 0:02:26]}  c5 {[%clk 0:02:11]} 17. Nxe4 {[%clk 0:02:26]}  Bxe4 {[%clk 0:02:10]} 18. Bxe4 {[%clk 0:02:25]}  dxe4 {[%clk 0:02:11]} 19. Be3 {[%clk 0:02:21]}  cxd4 {[%clk 0:01:58]} 20. Bxd4 {[%clk 0:02:21]}  Bxe5 {[%clk 0:01:51]} 21. Bxe5 {[%clk 0:02:17]}  Qb6+ {[%clk 0:01:51]} 22. Bd4 {[%clk 0:02:15]}  Qxb2 {[%clk 0:01:48]} 23. a4 {[%clk 0:02:10]}  Rad8 {[%clk 0:01:41]} 24. Rb1 {[%clk 0:02:10]}  Qa3 {[%clk 0:01:41]} 25. Rxb7 {[%clk 0:02:09]}  Nc5 {[%clk 0:01:38]} 26. Rxa7 {[%clk 0:02:02]}  Nb3 {[%clk 0:01:39]} 27. a5 {[%clk 0:01:49]}  Nxd4 {[%clk 0:01:38]} 28. cxd4 {[%clk 0:01:50]}  Qe3+ {[%clk 0:01:38]} 29. Kg2 {[%clk 0:01:50]}  Rxd4 {[%clk 0:01:39]} 30. Qc1 {[%clk 0:01:35]}  Rd2 {[%clk 0:01:30]} 31. Rf2 {[%clk 0:01:27]}  Qxa7 {[%clk 0:01:29]} 32. Qxd2 {[%clk 0:01:20]}  e3 {[%clk 0:01:29]} 33. Qd4 {[%clk 0:01:18]}  Qxd4 {[%clk 0:01:29]} 0-1


[Site "https://www.chess.com"]

[Event "Titled Tuesday Blitz March 07 Early 2023"]
[White "Bolourchifard, Farzad"]
[Black "Decuigniere, Tom"]
[WhiteFideId "12510084"]
[BlackFideId "26093820"]
[WhiteElo "2317"]
[BlackElo "2312"]
[Result "0-1"]
[Round "05"]
[TimeControl "180+2"]
[Date "2023.03.07"]
[WhiteClock "0:00:04"]
[BlackClock "0:00:17"]

1. e4 {[%clk 0:03:00]}  c5 {[%clk 0:02:48]} 2. Nc3 {[%clk 0:03:01]}  g6 {[%clk 0:02:48]} 3. g3 {[%clk 0:03:01]}  Bg7 {[%clk 0:02:49]} 4. Bg2 {[%clk 0:03:01]}  Nc6 {[%clk 0:02:49]} 5. d3 {[%clk 0:03:02]}  e6 {[%clk 0:02:50]} 6. Be3 {[%clk 0:03:03]}  b6 {[%clk 0:02:48]} 7. Qd2 {[%clk 0:03:03]}  Bb7 {[%clk 0:02:37]} 8. Nge2 {[%clk 0:03:02]}  Nd4 {[%clk 0:02:37]} 9. Nd1 {[%clk 0:03:01]}  Nxe2 {[%clk 0:02:35]} 10. Qxe2 {[%clk 0:03:02]}  d5 {[%clk 0:02:32]} 11. O-O {[%clk 0:02:32]}  Ne7 {[%clk 0:02:29]} 12. c3 {[%clk 0:02:20]}  a5 {[%clk 0:02:20]} 13. Re1 {[%clk 0:02:15]}  O-O {[%clk 0:02:15]} 14. Bg5 {[%clk 0:02:13]}  dxe4 {[%clk 0:02:05]} 15. Bxe7 {[%clk 0:02:10]}  Qxe7 {[%clk 0:02:05]} 16. dxe4 {[%clk 0:02:02]}  a4 {[%clk 0:02:01]} 17. a3 {[%clk 0:01:58]}  Ba6 {[%clk 0:01:58]} 18. Qf3 {[%clk 0:01:52]}  Rad8 {[%clk 0:01:56]} 19. Ne3 {[%clk 0:01:51]}  Rd2 {[%clk 0:01:52]} 20. Rab1 {[%clk 0:01:41]}  Rfd8 {[%clk 0:01:46]} 21. Bf1 {[%clk 0:01:33]}  Bxf1 {[%clk 0:01:39]} 22. Nxf1 {[%clk 0:01:33]}  R2d3 {[%clk 0:01:40]} 23. Qg2 {[%clk 0:01:31]}  b5 {[%clk 0:01:38]} 24. Re2 {[%clk 0:01:29]}  b4 {[%clk 0:01:37]} 25. cxb4 {[%clk 0:01:21]}  cxb4 {[%clk 0:01:38]} 26. axb4 {[%clk 0:01:21]}  Qxb4 {[%clk 0:01:39]} 27. e5 {[%clk 0:01:21]}  a3 {[%clk 0:01:29]} 28. f4 {[%clk 0:01:01]}  Qb3 {[%clk 0:01:00]} 29. Ra1 {[%clk 0:00:17]}  a2 {[%clk 0:01:00]} 30. Ree1 {[%clk 0:00:16]}  Bf8 {[%clk 0:00:56]} 31. Kh1 {[%clk 0:00:15]}  Bb4 {[%clk 0:00:37]} 32. Rec1 {[%clk 0:00:14]}  Rd1 {[%clk 0:00:33]} 33. Rxd1 {[%clk 0:00:14]}  Rxd1 {[%clk 0:00:34]} 34. Qa8+ {[%clk 0:00:15]}  Kg7 {[%clk 0:00:33]} 35. Rxa2 {[%clk 0:00:06]}  Rxf1+ {[%clk 0:00:29]} 36. Kg2 {[%clk 0:00:07]}  Qd1 {[%clk 0:00:20]} 37. Ra7 {[%clk 0:00:04]}  Rg1+ {[%clk 0:00:19]} 38. Kf2 {[%clk 0:00:04]}  Bc5# {[%clk 0:00:17]} 0-1


[Site "https://www.chess.com"]